Cogmind - Beta 15 @@@ ROGUE MODE // 2025.09.13 @ 18:14:19 Player: camuhron Result: Destroyed by Y-45 Defender with Beam Rifle Performance ------------- Evolutions (1) 500 Regions Visited (3) 600 Robots Destroyed (25) 125 Value Destroyed (899) 899 Prototype IDs (0) 0 Alien Tech Used (0) 0 Bonus (0) 0 TOTAL SCORE: 2124 Bonus ------- None Cogmind --------- Core Integrity 0/400 Matter 259/300 Energy 100/100 System Corruption 0% Temperature Cool (92) Movement Core (100) Ox1 Location -9/Materials Parts ------- > --- POWER (2) -------- (None) > --- PROPULSION (2) --- (None) > --- UTILITY (2) ------ Small Storage Unit > --- WEAPON (3) ------- (None) > --- INVENTORY (8) ---- Deuterium Engine Large Storage Unit Seismic Detector Peak State ------------ > --- POWER ------------ Deuterium Engine Deuterium Engine > --- PROPULSION ------- Light Treads Improved Treads > --- UTILITY ---------- Small Storage Unit Sensor Array > --- WEAPON ----------- Heavy Assault Rifle Shotgun Improved Light Cannon > --- INVENTORY -------- Light Ion Engine Deuterium Engine Deuterium Engine Light Treads Large Storage Unit Seismic Detector Light Armor Plating [Rating: 18] Favorites ----------- Power Deuterium Engine Engine Deuterium Engine Propulsion Light Treads Treads Light Treads Utility Small Storage Unit Device Sensor Array Storage Small Storage Unit Protection Light Armor Plating Weapon Light Assault Rifle Energy Gun Small Laser Ballistic Gun Light Assault Rifle Ballistic Cannon Improved Light Cannon Build | -11 -10 -10 -9 ------- Run | Yrd Mat Min Mat Slots Evolved 2 | . . . 2 Power 1 | . . . 1 Propulsion . | . . . . Utility . | . . . . Weapon 1 | . . . 1 Parts Attached 19 | 6 1 1 11 Power 6 | 1 . 1 4 Engine 6 | 1 . 1 4 Core . | . . . . Reactor . | . . . . Propulsion 4 | 2 . . 2 Treads 4 | 2 . . 2 Leg . | . . . . Wheel . | . . . . Hover . | . . . . Flight . | . . . . Utility 3 | 1 1 . 1 Device 1 | . 1 . . Storage 1 | 1 . . . Processor . | . . . . Hackware . | . . . . Protection 1 | . . . 1 Artifact . | . . . . Weapon 6 | 2 . . 4 Energy Gun 1 | . . . 1 Energy Cannon . | . . . . Ballistic Gun 4 | 2 . . 2 Ballistic Cannon 1 | . . . 1 Launcher . | . . . . Special Weapon . | . . . . Impact Weapon . | . . . . Slashing Weapon . | . . . . Piercing Weapon . | . . . . Special Melee Weapon . | . . . . Unidentified Prototypes . | . . . . Parts Lost 15 | . . 1 14 Power 4 | . . 1 3 Propulsion 4 | . . . 4 Utility 2 | . . . 2 Weapon 5 | . . . 5 Highest Loss Streak 8 | . . 1 8 To Critical Strikes . | . . . . Average Backups 4 | 1 4 4 5 Power 1 | . 1 1 2 Propulsion 1 | 1 2 2 1 Utility 1 | . . 1 2 Weapon . | . . . . Tool/Special . | . . . . Unused Backups 6 | . 2 . 4 Power 1 | . . . 1 Propulsion 3 | . 2 . 1 Utility 2 | . . . 2 Weapon . | . . . . Tool/Special . | . . . . Average Slot Usage (%) 92 | . 94 100 89 Engine 18 | . 14 14 20 Treads 23 | . 28 28 20 Device 10 | . 8 14 9 Storage 12 | . 14 14 11 Energy Gun 2 | . . . 3 Ballistic Gun 20 | . 28 28 15 Ballistic Cannon 3 | . . . 6 Peak Build Rating 18 | 6 7 7 18 Average Rating 11 | 4 6 6 14 On Entrance 5 | . 6 7 7 Naked Turns . | . . . . Heaviest Build 36 | 12 13 13 36 Greatest Support 43 | 40 40 40 43 Greatest Overweight (x) 4 | 1 . . 4 Average Overweight (x) . | . . . . Largest Inventory Capacity 8 | 8 8 8 8 Average Capacity 7 | 6 8 8 8 Most Carried 7 | 3 7 5 7 Average Carried 5 | 1 4 4 5 Final Capacity 8 | 8 8 8 8 Final Carried 5 | 3 5 4 3 Class Distribution -------------------- 65% | Mutant 26% | Skirmisher 7% | Tank Dominant Class ---------------- Mutant | -10/Materials Mutant | -10/Mines Skirmisher | -9/Materials Resources | -11 -10 -10 -9 ----------- Run | Yrd Mat Min Mat Matter Collected 863 | 215 57 58 533 Remotely . | . . . . Salvage Created 962 | . 58 80 824 Parts 53 | . 5 . 48 Haulers Intercepted . | . . . . Recyclers Shooed 1 | . . . 1 Parts Field Recycled . | . . . . Retrieved Matter . | . . . . Parts Self-Destructed . | . . . . Prevented . | . . . . Kills | -11 -10 -10 -9 ------- Run | Yrd Mat Min Mat Combat Hostiles Destroyed 28 | . 1 5 22 Melee 1 | . . . 1 Guns 19 | . 1 5 13 Cannons 8 | . . . 8 Classes Destroyed 6 | . 2 1 3 Operator 1 | . 1 . . Watcher 1 | . . . 1 Grunt 19 | . 1 . 18 Duelist 1 | . . . 1 Sentry 3 | . . . 3 Assembled 5 | . . 5 . Best Kill Streak 6 | . 1 3 6 Combat Bots Only 5 | . 1 3 5 Max Kills in Single Turn 1 | . 1 1 1 Gunslinging . | . . . . Exploded . | . . . . Melee 1 | . . . 1 Uniques/NPCs Destroyed . | . . . . Combat | -11 -10 -10 -9 -------- Run | Yrd Mat Min Mat Hostile Shots Fired 206 | . 2 35 169 Missed 51 | . 1 8 42 Hits 155 | . 1 27 127 Melee 15 | . . 9 6 Projectile 140 | . 1 18 121 Critical Strikes 2 | . . . 2 Damage Taken 2316 | . 12 524 1780 Core 573 | . 12 161 400 Absorbed by Shields . | . . . . Core Remaining (%) 65 | 100 . 30 . Volleys Fired 110 | . 6 20 84 Largest 3 | . 2 2 3 Hottest 96 | . 40 40 96 Shots Fired 217 | . 12 40 165 Gun 179 | . 12 40 127 Cannon 38 | . . . 38 Launcher . | . . . . Special . | . . . . Kinetic 210 | . 12 40 158 Thermal 7 | . . . 7 Explosive . | . . . . Electromagnetic . | . . . . Robot Hit Streak 10 | . 7 4 10 Robot Miss Streak 6 | . 3 4 6 Penetration Max . | . . . . Secondary Targets 1 | . . 1 . Max Gunslinging Chain 1 | . . 1 . Shots Hit Robots 141 | . 7 21 113 Core Hits 63 | . 5 15 43 Critical Kills . | . . . . Critical Parts Destroyed . | . . . . Critical Strikes . | . . . . Melee Attacks . | . . . . Impact . | . . . . Slashing . | . . . . Piercing . | . . . . Sneak Attacks . | . . . . Combat Hostiles . | . . . . Follow-up Attacks . | . . . . Damage Inflicted 2076 | . 65 177 1834 Guns 1596 | . 65 172 1359 Cannons 446 | . . . 446 Explosions . | . . . . Melee . | . . . . Ramming 34 | . . 5 29 Kinetic 2010 | . 65 172 1773 Thermal 32 | . . . 32 Explosive . | . . . . Electromagnetic . | . . . . Impact . | . . . . Slashing . | . . . . Piercing . | . . . . Highest Corruption . | . . . . Average Corruption . | . . . . Corruption Purged . | . . . . Corruption Blocked . | . . . . Overload Shots . | . . . . Overflow Damage 16 | . . . 16 Projectiles 16 | . . . 16 Explosions . | . . . . Melee . | . . . . Knockbacks 5 | . . . 5 Impact . | . . . . Kinetic 5 | . . . 5 Secondary . | . . . . Self-Inflicted Damage 2 | . . . 2 Shots . | . . . . Rammed 15 | . . 2 13 Targets Rammed 15 | . . 2 13 Kicked . | . . . . Crushed . | . . . . Highest Temperature 310 | . . 20 310 Average Temperature 110 | . . 20 112 Received Heat Transfer 761 | . 6 20 735 Effects 3 | . . . 3 Energy Bleed 1 | . . . 1 Interference 2 | . . . 2 Siege Activations . | . . . . Martial Activations . | . . . . Shielding Activations . | . . . . Robots Disrupted . | . . . . Combat Hostiles . | . . . . Robots Corrupted . | . . . . Combat Hostiles . | . . . . Parts Fried . | . . . . Impact Corruptions . | . . . . Robots Melted . | . . . . Combat Hostiles . | . . . . Parts Melted . | . . . . Heat Transferred 75 | . . . 75 Parts Sabotaged . | . . . . Parts Stolen . | . . . . Parts Stripped . | . . . . Power Chain Reactions . | . . . . Alert | -11 -10 -10 -9 ------- Run | Yrd Mat Min Mat Maximum Alert Level 1 | . . . 1 Low Security (%) 98 | 100 100 100 97 Level 1 1 | . . . 2 Level 2 . | . . . . Level 3 . | . . . . Level 4 . | . . . . Level 5 . | . . . . High Security . | . . . . Max Security . | . . . . Peak Influence 223 | . 30 . 223 Initial . | . . . . Average 26 | . 2 . 42 Influence Increases 623 | . 35 . 588 Destroy 0b10 Robot/C 460 | . 20 . 440 Destroy 0b10 Robot/NC 10 | . 5 . 5 Destroy Leader 102 | . 10 . 92 Destroy Structure 6 | . . . 6 Lose Combat Pursuer 45 | . . . 45 Influence Decreases 427 | . 35 . 392 Time Decay 317 | . 35 . 282 Lost Part 110 | . . . 110 Squads Dispatched 3 | . 1 . 2 Investigation 1 | . . . 1 Extermination . | . . . . Reinforcement 2 | . 1 . 1 Assault . | . . . . Garrison . | . . . . Intercept . | . . . . Searches Triggered . | . . . . Construction Impeded . | . . . . Haulers Reinforced . | . . . . Active Scanning Responses . | . . . . Cargo Convoy Interrupts . | . . . . Stealth | -11 -10 -10 -9 --------- Run | Yrd Mat Min Mat Distress Signals 1 | . . . 1 Communications Jammed . | . . . . Distress Signals . | . . . . Times Spotted 51 | . 4 12 35 Peak Tracking Total 9 | . 1 8 9 Tactical Retreats 4 | . . 3 1 Traps | -11 -10 -10 -9 ------- Run | Yrd Mat Min Mat Traps Triggered 1 | . . . 1 Indirectly . | . . . . Trap Hack Attempts . | . . . . Triggered . | . . . . Disarmed . | . . . . Reprogrammed . | . . . . Reused . | . . . . Traps Extracted . | . . . . Installed . | . . . . Triggered . | . . . . Machines | -11 -10 -10 -9 ---------- Run | Yrd Mat Min Mat Machines Disabled . | . . . . Max in Single Turn . | . . . . Machines Repaired . | . . . . Machines Dismantled . | . . . . Machines Sabotaged . | . . . . Overloaded Fab Kills . | . . . . Hacking | -11 -10 -10 -9 --------- Run | Yrd Mat Min Mat Machines Accessed 2 | . . . 2 Terminals 1 | . . . 1 Fabricators . | . . . . Repair Stations . | . . . . Recycling Units . | . . . . Scanalyzers 1 | . . . 1 Garrison Access . | . . . . Total Hacks 7 | . . . 7 Successful 5 | . . . 5 Failed 2 | . . . 2 Catastrophic 1 | . . . 1 Database Lockouts . | . . . . Manual . | . . . . Terminals 2 | . . . 2 Fabricators . | . . . . Repair Stations . | . . . . Recycling Units . | . . . . Scanalyzers 5 | . . . 5 Garrison Access . | . . . . Terminal Hacks . | . . . . Fabricator Hacks . | . . . . Repair Station Hacks . | . . . . Recycling Unit Hacks . | . . . . Scanalyzer 5 | . . . 5 Insert Component 2 | . . . 2 Analyze 3 | . . . 3 Garrison Access Hacks . | . . . . Unauthorized Hacks . | . . . . Terminals . | . . . . Fabricators . | . . . . Repair Stations . | . . . . Recycling Units . | . . . . Scanalyzers . | . . . . Garrison Access . | . . . . Data Cores Recovered . | . . . . Used . | . . . . Hacking Detections 1 | . . . 1 Full Trace Events 1 | . . . 1 Feedback Events . | . . . . Feedback Blocked . | . . . . Robot Schematics Acquired . | . . . . Robots Built . | . . . . Authchips . | . . . . Time . | . . . . Total Robot Build Rating . | . . . . Part Schematics Acquired 2 | . . . 2 Parts Built . | . . . . Authchips . | . . . . Time . | . . . . Total Part Build Rating . | . . . . Parts Repaired . | . . . . Time . | . . . . Parts Recycled . | . . . . Recycled Matter . | . . . . Retrieved Matter . | . . . . Retrieved Components . | . . . . Parts Scanalyzed 2 | . . . 2 Part Schematics Acquired 2 | . . . 2 Parts Damaged . | . . . . Bothacking | -11 -10 -10 -9 ------------ Run | Yrd Mat Min Mat Used RIF Installer . | . . . . Robots Hacked . | . . . . Non-combat . | . . . . Combat . | . . . . Robot Hacks Applied . | . . . . Relay Couplers Released . | . . . . Fabnet Peak Effective % . | . . . . Robots Rewired . | . . . . Allies Hacked . | . . . . Hacks Repelled . | . . . . Allies | -11 -10 -10 -9 -------- Run | Yrd Mat Min Mat Total Allies . | . . . . Largest Group . | . . . . Highest-Rated Group . | . . . . Highest-Rated Ally . | . . . . Total Orders . | . . . . Ally Attacks . | . . . . Total Damage . | . . . . Kills . | . . . . Allies Corrupted . | . . . . Allies Melted . | . . . . Intel | -11 -10 -10 -9 ------- Run | Yrd Mat Min Mat Active Infowar (turns) 1810 | . 210 443 1157 Sensors 1810 | . 210 443 1157 Robot Analysis Total . | . . . . Derelict Logs Recovered . | . . . . Drone Launches . | . . . . Drone Recoveries . | . . . . Exploration | -11 -10 -10 -9 ------------- Run | Yrd Mat Min Mat Turns Passed 2262 | 125 324 443 1370 Spaces Moved 1147 | 77 189 228 653 Core 16 | 11 . . 5 Treads 1131 | 66 189 228 648 Legs . | . . . . Wheels . | . . . . Hover . | . . . . Flight . | . . . . Fastest Speed 50 | 50 160 160 100 Average Speed 159 | 148 160 160 160 Slowest Speed 250 | 160 160 160 250 Overloaded Moves . | . . . . Propulsion Burnouts . | . . . . Robots Hopped . | . . . . Potential Cave-ins . | . . . . Cave-ins Triggered . | . . . . Exploration Rate (%) 33 | 6 32 53 44 Regions Visited 3 Branch Regions 1 Pre-discovered Areas . | . . . . Known Exits Taken . | . . . . Unknown Exits Taken 3 | 1 1 1 . Scrap Searched . | . . . . Spaces Dug . | . . . . Terrain Destroyed 3 | . . . 3 Melee . | . . . . Projectile 3 | . . . 3 AOE . | . . . . Terrain Rammed . | . . . . Walls Destroyed . | . . . . Machines Disabled . | . . . . Actions | -11 -10 -10 -9 --------- Run | Yrd Mat Min Mat Total 1389 | 85 202 273 829 Wait 80 | . . 23 57 Move 1144 | 76 188 227 653 Hop . | . . . . Pick Up 12 | 3 5 . 4 Fast Attach 13 | 6 . . 7 Attach 6 | . 1 1 4 Detach 3 | . . . 3 Swap . | . . . . Drop 6 | . 2 . 4 Fire 110 | . 6 20 84 Melee . | . . . . Ram 1 | . . . 1 Kick . | . . . . Crush 14 | . . 2 12 Escape Stasis . | . . . . Rewire . | . . . . Trap . | . . . . Miscellaneous . | . . . . Route ------- -11/Scrapyard -10/Materials -10/Mines -9/Materials History --------- Turn | Location | Event 21 | -11/Scrapyard | Discovered new exit (range 14) 126 | -11/Scrapyard | Entered Materials 318 | -10/Materials | Build established: Mutant 349 | -10/Materials | Discovered new exit (range 15) 450 | -10/Materials | Entered Mines 589 | -10/Mines | Assembled infested the area 700 | -10/Mines | Core integrity fell below 50% 878 | -10/Mines | Discovered new exit (range 9) 893 | -10/Mines | Entered Materials 893 | -9/Materials | Evolved 2 slots: Power x1, Weapon x1 1059 | -9/Materials | Lost 3 parts (1n2w) 1748 | -9/Materials | Build established: Skirmisher 1965 | -9/Materials | Core integrity fell below 50% 2081 | -9/Materials | Lost 3 parts (1p1n1u) 2258 | -9/Materials | Core integrity fell below 20% 2263 | -9/Materials | Destroyed by Y-45 Defender with Beam Rifle Last Messages --------------- G-47 Trooper destroyed. G-34 Mercenary destroyed. Acquired 22 matter. Acquired 3 matter. Deuterium Engine destroyed. G-34 Mercenary destroyed. Acquired 23 matter. Imp. Treads destroyed. Overheating: Energy bleed (-57). Hvy. Assault Rifle destroyed. Y-45 Defender destroyed. Imp. Light Cannon destroyed. Y-45 Defender suffers critical hit (Burn). Lgt. Armor Plating destroyed. U-05 Engineer builds a Wall. G-34 Mercenary destroyed. Shotgun destroyed. Lgt. Treads destroyed. Deuterium Engine destroyed. Slammed into G-34 Mercenary. Map ----- +----------------------------------------------------+ | ????????????????#" """ # # ""T"" #??????????? | | ????????????????#T + % + #??????????? | | ????????????????#" """ # %#* #??????????? | | ?????????????????? """??# # #??????????? | | ?????????????????? "????# # """ #??????????? | | ?????????????????????????# # """ #??????????? | | ???????????????########### # """ #??????????? | | ???????????????# # # ???????????? | | ???????????????????? / ########### #?????? | | ???????????????????????? # #?????? | | ???????????????????????? # #?????? | | ??????????????????????#+## #?????? | | ??????????????????????# ############ ??????? | | ??????????????????????# " #??#########????????? | | ??????????????????????# "% #??# ! #????????? | | ??????????????????????# #### #??#?????? | | ??????????????????????# + #? #?????? | | ???????????????????#### #### #? #?????? | | ??????????????????+ #??# # #?????? | | ??????????????????#########+##### # ### | | ??????????????????????# # +^ " | | ??????????????????????# # = # | | ??????????????????????# a # # #### | | ??????????????????????#*g # #?#????? # | | ???????? ######!Y[ # #????????? | | ???????? *+%Y@ #########????????? | | ???????? ######[%g #????????????????? | | ?????????????????????##%* #????????????????? | | ??????????????????????###########????????????????? | | ?????????????????????????????????????????????????? | | ?????????????????????????????????????????????????? | | ?????????????????????????????????????????????????? | | ?????????????????????????????????????????????????? | | ?????????????????????????????????????????????????? | | ?????????????????????????????????????????????????? | | ?????????????????????????????????????????????????? | | ?????????????????????????????????????????????????? | | ?????????????????????????????????????????????????? | | ?????????????????????????????????????????????????? | | ?????????????????????????????????????????????????? | | | | | | | | | | | | | | | | | | | | | +----------------------------------------------------+ Best States ------------- Heat Dissipation 28 Energy Generation 23 Energy Capacity 450 Matter Stores 300 Matter Capacity 300 Sight Range 16 Robot Scan Range 14 Terrain Scan Density 10 Armor Coverage 150 Evasion (%) 40 Recoil Reduction 2 Item Schematics ----------------- Seismic Detector | -9/Materials | Scanalyzed Lgt. Treads | -9/Materials | Scanalyzed Robot Schematics ------------------ None Fabricated ------------ Nothing Repaired ---------- Nothing Alien Tech Used ----------------- None Achievements -------------- Fist Fight I Survived The Infestation Challenges ------------ None Game ------ Seed TerrorTachyonMediator Manual? 0 Play Time 00:20:11 Cumulative 4.5 hours Start 2025.09.13 @ 17:35:19 End 2025.09.13 @ 18:14:19 Sessions 1 Manual Loads 0 Difficulty Rogue Special Mode None Game No. 12 Rogue 12 Adventurer 0 Explorer 0 Win Type - Total 0 Types 0/0/0/0/0/0/0/0/0/0 Lore% 2 Gallery% 9 Achievement% 8 Wizard Run 0 Options --------- Layout 1 ASCII 0 Keyboard 1 Movement Arrows Keybinds 0 Fullscreen 1 Font 24/Smallcaps Map View 50x35 Zoom Use 0% Tactical HUD 0 Map Filters NONE Filters NONE Steam 1 RUN: 19a02095-c179-412f-8561-b35459b1db31